{"text_format":"1","workbook":"xlsx","n_sheets":5,"sheets":["INSTRUCTIONS","Application","Sea-Service","Cargo-list","Списки"],"not_rendered":{"charts":0,"images":6,"macros":1,"external_links":0,"defined_names":0,"comments":2,"pivot_tables":0},"unopened":[],"bounds":{"document_bytes":16777216,"sheet_cells":100000,"rows_first":2000,"rows_last":500,"rows_between":2000,"halvings":0,"cell_chars":16384,"cell_head_chars":4096},"cells_cut":0,"cells_raw":0,"read":"whole","date_system":"1900"}

{"sheet":"INSTRUCTIONS","index":0,"n_rows":24,"n_cols":2,"rows_kept":24,"cut":false,"hidden":false,"merged":[[0,0,0,1],[21,0,21,1],[23,0,23,1]]}
["Инструкция по заполнению анкеты"]
[]
[1,"После открытия файла, если в вашем приложении Excel установлен высокий уровень безопасности, необходимо нажать \"Разрешить редактирование\" в появившемся сообщении, генерируемом приложением Excel."]
[]
[2,"Если в вашем приложении Excel установлен высокий уровень безопасности по работе макросов, необходимо нажать \"Включить содержимое\" в появившемся сообщении, генерируемом приложением Excel."]
[]
[3,"На листе \"Application\", в строке 7 ввести из выпадающих списков наименование должности и тип судна, на которые претендует Заявитель."]
[]
[4,"На листе \"Application\", нажатием кнопки \"Insert Photo\" выберите на своем компьютере фотографию. Подтвердив вставку фотография автоматически будет размещена на листе в отведенном для этого месте."]
[5,"На листе \"Application\" ввести личные данные и реквизиты документов, соответствующих должности и диплому (квалификационному свидетельству), обращая внимание на то, что некоторые из ячеек снабжены выпадающими списками для простоты заполнения бланка. Ниже для примера приводится внешний вид ячеек с выпадающими списками (при выборе ячейки и при нажатии левой кнопкой мыши на ячейке)."]
[]
[6,"На листе \"Sea-Service\" ввести данные в отношении морского стажа. После заполнения самой верхней строки таблицы автоматически добавится новая пустая строка для ввода данных следующего контракта. Записи в таблицу вносить начиная с самой нижней строки в порядке увеличения даты (в нижней сроке - самая старая информация, в верхней - самая свежая). Записи должны охватывать период от 5 до 7 лет (для тех у кого он имеется в таком объеме)."]
[7,"После окончания заполнения анкеты, для сохранения файла и выхода из приложения Excel, на любом открытом листе необходимо нажать в правом верхнем углу на кнопку с символом [Х]."]
[null,"Далее появится извещение о полном названии нового файла с анкетой и месте его сохранения на компьютере. Приложение Excel запросит вас определить действие по сохранению файла и завершению работы."]
[]
["-","Для сохранения нового файла и выхода из приложения Excel нажать на данном извещении кнопку \"YES\" / \"ДА\"."]
["-","Для выхода из приложения Excel без сохранения нового файла нажать на данном извещении кнопку \"NO\" / \"НЕТ\"."]
["-","Для того чтобы прервать сохранение и выход из приложения Excel и продолжить редактирование файла нажать на данном извещении кнопку \"CANCEL\" / \"ОТМЕНА\"."]
[8,"Новый файл с вашей анкетой будет сохранен на рабочем столе вашего компьютера под именем содержащим: \"SAJSC\", ваш тип судна, должность, фамилию и имя.\n\n(Пример имени файла: SAJSC CONT C.Off Pupkin Vasily)"]
[9,"Отправить в SAJSC новый файл с анкетой, сохраненный под именем как описано в п. 8 данной инструкции."]
[]
["Возникающие вопросы по работе с анкетой можно задать по тел. +79532257657 (Иванов Анатолий Анатольевич), желательно в рабочие офисные часы (GMT +10), либо на адрес application@sajsc.ru."]
[]
["Некоторые ячейки содержат примечания поясняющие правила их заполнения. Убедительная просьба читать данные примечания."]

{"sheet":"Application","index":1,"n_rows":91,"n_cols":8,"rows_kept":91,"cut":false,"hidden":false,"merged":[[86,3,86,4],[64,3,64,4],[66,3,66,4],[55,3,55,4],[57,3,57,4],[58,3,58,4],[59,3,59,4],[60,3,60,4],[84,3,84,4],[85,3,85,4],[36,3,36,4],[37,3,37,4],[34,0,34,1],[34,2,34,5],[61,3,61,4],[62,3,62,4],[63,3,63,4],[38,3,38,4],[39,3,39,4],[40,0,40,1],[41,0,41,1],[62,0,62,1],[63,0,63,1],[90,0,90,7],[42,0,42,1],[43,0,43,1],[45,0,45,1],[46,0,46,1],[47,0,47,1],[50,0,50,1],[51,0,51,1],[52,0,52,1],[53,0,53,1],[55,0,55,1],[57,0,57,1],[59,0,59,1],[60,0,60,1],[61,0,61,1],[65,0,65,1],[65,3,65,4],[54,3,54,4],[71,0,71,1],[68,0,68,1],[45,3,45,4],[46,3,46,4],[47,3,47,4],[48,3,48,4],[88,0,88,1],[81,0,81,1],[82,0,82,1],[84,0,84,1],[85,0,85,1],[77,0,77,1],[80,0,80,1],[70,0,70,1],[69,0,69,1],[78,0,78,1],[75,0,75,1],[76,0,76,1],[64,0,64,1],[66,0,66,1],[83,0,83,1],[83,3,83,4],[87,0,87,1],[87,3,87,4],[13,4,13,5],[24,0,24,1],[44,0,44,1],[49,0,49,1],[54,0,54,1],[58,0,58,1],[48,0,48,1],[49,3,49,4],[50,3,50,4],[51,3,51,4],[52,3,52,4],[53,3,53,4],[31,0,31,1],[35,0,35,1],[37,0,37,1],[36,0,36,1],[33,0,33,1],[31,2,31,5],[32,2,32,5],[25,0,25,1],[28,0,28,1],[39,0,39,1],[38,0,38,1],[32,0,32,1],[0,0,1,1],[6,2,6,3],[6,4,6,5],[9,0,9,1],[9,2,9,5],[14,0,14,1],[14,2,14,5],[18,5,18,6],[12,4,12,5],[11,0,11,1],[11,2,11,5],[6,0,6,1],[7,0,7,1],[7,2,7,5],[2,6,10,7],[8,0,8,1],[33,2,33,5],[35,3,35,4],[8,2,8,5],[0,6,0,7],[1,6,1,7],[18,0,18,1],[17,2,17,5],[13,2,13,3],[28,3,28,5],[29,0,29,1],[23,2,23,5],[24,2,24,5],[25,2,25,5],[27,0,27,1],[27,3,27,5],[26,0,26,1],[26,3,26,5],[23,0,23,1],[5,2,5,3],[0,2,1,5],[2,2,3,5],[4,2,4,3],[30,2,30,5],[86,0,86,1],[10,0,10,1],[10,2,10,5],[22,0,22,1],[22,2,22,5],[16,2,16,3],[17,0,17,1],[18,2,18,3],[19,3,19,7],[20,3,20,5],[16,4,16,5],[15,0,15,1],[12,2,12,3],[15,3,15,5],[29,3,29,5],[19,0,20,1],[21,0,21,7],[40,3,40,4],[41,3,41,4],[42,3,42,4],[43,3,43,4],[44,3,44,4],[30,0,30,1],[88,3,88,4],[56,0,56,1],[56,3,56,4],[74,3,74,4],[75,3,75,4],[76,3,76,4],[77,3,77,4],[78,3,78,4],[80,3,80,4],[81,3,81,4],[82,3,82,4],[67,3,67,4],[68,3,68,4],[69,3,69,4],[70,3,70,4],[71,3,71,4],[72,3,72,4],[73,3,73,4],[74,0,74,1],[73,0,73,1],[72,0,72,1],[67,0,67,1],[79,0,79,1],[79,3,79,4]]}
["Sea Agency JSC ",null,"Application Form for Seafarers ",null,null,null,"Date of availability"]
[]
["Vladivostok,                 tel:","+7 4232 412932",{"$f":"IF(Списки!D28<=5,\"(Deck Officers)\",IF(Списки!D28<=11,\"(Engine Officers)\",IF(OR(Списки!D28<=12,Списки!D28=13,Списки!D28=14,Списки!D28=15,Списки!D28=22,Списки!D28=23,Списки!D28=24),\"(Deck staff)\",IF(Списки!D28=\"\",\"\",\"(Engine staff)\"))))","v":"(Deck staff)"},null,null,null,"photo"]
["Nakhodka,                    tel:","+7 4236 611588"]
["St. Petersburg               tel:"]
["e-mail: ","application@sajsc.ru","Desired Salary:",null,3,"USD"]
["Applied for Position / Vessel Type:",null,"Bosun",null,"Oil tanker"]
["Surname:"]
["First name:"]
["Date of birth:"]
["Place of birth:"]
["Home Address:",null,null,null,null,null,"Weight, kg"]
["E-mail","Skype ID",null,null,null,null,"Height, cm"]
["Mobile telephone","Home telephone",null,null,null,null,"Clothes size"]
["Marital Status:",null,null,null,null,null,"Shoes size"]
["Next of Kin Status / Full Name:",null,null,null,null,null,"Hair color"]
["NoK Mobile telephone","Home telephone",null,null,null,null,"Eye color"]
["Nearest airport:",null,null,null,null,null,"BMI",{"$f":"IF(OR(H12=0,H13=0),\"\",H12/((H13/100)^2))","v":""}]
["Language knowledge (tests results)",null,"Marlins test",null,null,"CES 6.0"]
["Academic Qualification",null,"Name of Institute:                                                                                                    "]
[null,null,"Qualification:                                                                ",null,null,null,"Graduation year:"]
[" Seafarer's Documents"]
["National Identity/Travel Documents",null,"Number",null,null,null,"Issued","Expiry"]
["Seaman’s book"]
["Seafarer's ID"]
["Travel Passport"]
["Visas",null,"Visa type","Number",null,null,"Issued","Expiry"]
["US visa"]
["Schengen visa"]
["Another visa (please indicate)"]
["Medical Certificate",null,null,null,null,null,"Issued","Expiry"]
["Physical Examination (valid at least 6 months)"]
["Yellow Fever Vaccination (termless)"]
["COVID-19 Vaccination"]
["Drug / alcohol test"]
["Licence, certificates, trainings",null,"Grade (if any)","Number",null,"Place of issue","Issued","Expiry"]
[{"$f":"IF(OR(C37=\"\",C37=\"Absent\"),\"Certificate of Competency  (COC)\",CONCATENATE(\"Certificate of Competency  (COC)  (\",CHOOSE(MATCH(Application!C37,Списки!I1:I15,0),\"II/1\", \"II/2\",\"II/2\",\"II/4\",\"II/5\",\"III/1\",\"III/2\",\"III/2\",\"III/3\",\"III/3\",\"III/4\",\"III/5\",\"III/6\",\"III/7\",\"MOT-2006\"),\")\"))","v":"Certificate of Competency  (COC)"}]
["GMDSS Operator Certificate (IV/2)"]
["Radar Observation & Plotting (ROP) (I/12.4)"]
["Automatic Radar Plotting Aid (ARPA) (I/12.5)"]
["ECDIS (National; IMO model course 1.27)"]
["ECDIS (Indicate model)"]
["Basic Safety Training (VI/1)"]
["Proficiency in survival craft, rescue boats (VI/2-1)"]
["Proficiency in fast rescue boats (VI/2-2)"]
["Advanced Fire-fighting (VI/3)"]
["Medical First Aid (VI/4-1)"]
["Medical Care (VI/4-2)"]
["Ship Security Officer (VI/5)"]
["Security-Awareness Training (VI/6.1)"]
["Designated Security Duties (VI/6.4)"]
["HAZMAT / Transportation of Dangerous goods"]
["HAZMAT / US 49CFR"]
["Training for ships operating in Polar waters"]
["Liquid Cargo & Ballast Operations simulator"]
["Bridge Team & Resource Management"]
["Engine Resource Management"]
["Ship Handling"]
["Incident Investigation"]
["Marpol/Solas"]
["Ship Safety Officer Certificate"]
["Bosun/Fitter/Welder Certificate"]
["Crude Oil Washing"]
["Inert Gas Systems"]
["Vapor Recovery Systems"]
["FRAMO Special Course"]
["High Voltage"]
["RT-Flex training (ME, Wartsila)"]
["Other:"]
["Other:"]
["Tanker Certificates",null,"Grade (if any)","Number",null,"Place of issue","Issued","Expiry"]
[{"$f":"IF(OR(C37=\"CPT\",C37=\"C/O\",C37=\"OOW/Deck\",C37=\"C/E > 3000\",C37=\"2/E > 3000\",C37=\"C/E < 3000\",C37=\"2/E < 3000\",C37=\"OOW/Engine\",C37=\"ETO\"),\"Endorsement for Oil and Chemical tanker cargo operations (V/1-1.1)\",\"Training for Oil and Chemical tanker cargo operations (V/1-1.1)\")","v":"Training for Oil and Chemical tanker cargo operations (V/1-1.1)"},null,{"$f":"IF(CODE(A72)=84,\"Basic\",IF(CODE(A72)=69,\"Operational\",\"\"))","v":"Basic"}]
[{"$f":"IF(OR(C37=\"CPT\",C37=\"C/O\",C37=\"OOW/Deck\",C37=\"C/E > 3000\",C37=\"2/E > 3000\",C37=\"C/E < 3000\",C37=\"2/E < 3000\",C37=\"OOW/Engine\",C37=\"ETO\"),\"Endorsement for Oil tanker cargo operations (V/1-1.3)\",\"Training for Oil tanker cargo operations (V/1-1.3)\")","v":"Training for Oil tanker cargo operations (V/1-1.3)"},null,{"$f":"IF(CODE(A73)=84,\"Advanced\",\"Management\")","v":"Advanced"}]
[{"$f":"IF(OR(C37=\"CPT\",C37=\"C/O\",C37=\"OOW/Deck\",C37=\"C/E > 3000\",C37=\"2/E > 3000\",C37=\"C/E < 3000\",C37=\"2/E < 3000\",C37=\"OOW/Engine\",C37=\"ETO\"),\"Endorsement for Chemical tanker cargo operations (V/1-1.5)\",\"Training for Chemical tanker cargo operations (V/1-1.5)\")","v":"Training for Chemical tanker cargo operations (V/1-1.5)"},null,{"$f":"IF(CODE(A74)=84,\"Advanced\",\"Management\")","v":"Advanced"}]
[{"$f":"IF(OR(AND(CODE(A74)=84,OR(C75=\"Operational\",C75=\"Management\")),AND(CODE(A74)=69,OR(C75=\"Basic\",C75=\"Advanced\"))),\"Grade is wrong selected. Please change selection in column Grade (if any).\",IF(OR(C37=\"CPT\",C37=\"C/O\",C37=\"OOW/Deck\",C37=\"C/E > 3000\",C37=\"2/E > 3000\",C37=\"C/E < 3000\",C37=\"2/E < 3000\",C37=\"OOW/Engine\",C37=\"ETO\"),CONCATENATE(\"Endorsement for Liquefied Gas tanker cargo operations  \",IF(C75=\"Operational\",\"(V/1-2.1)\", IF(C75=\"Management\",\"(V/1-2.3)\",\"\"))), CONCATENATE(\"Training for Liquefied Gas tanker cargo operations  \",IF(C75=\"Basic\",\"(V/1-2.1)\", IF(C75=\"Advanced\",\"(V/1-2.3)\",\"\")))))","v":"Training for Liquefied Gas tanker cargo operations  "}]
[{"$f":"CONCATENATE(\"Training for ships subject to the IGF Code (use gas or other low-flashpoint fuels)  \",IF(C76=\"Basic\",\"(V/3-1)\",IF(C76=\"Advanced\", \"(V/3-2)\",\"\")))","v":"Training for ships subject to the IGF Code (use gas or other low-flashpoint fuels)  "}]
["Flag state documents ",null,"Country","Number",null,"Place of issue","Issued","Expiry"]
["Seaman's Book"]
["COC Endorsement"]
["GMDSS Endorsement"]
[{"$f":"IF(C81=\"\",\"Tanker Endorsement\",CONCATENATE(\"Tanker Endorsement  (\",CHOOSE(MATCH(Application!C81,Списки!$M$1:$M$6,0),\"V/1-1.1\",\"V/1-1.3\",\"V/1-1.5\",\"V/1-1.3 & V/1-1.5\",\"V/1-2.1\", \"V/1-2.3\"),\")\"))","v":"Tanker Endorsement"}]
["Seaman's Book"]
["COC Endorsement"]
["GMDSS Endorsement"]
[{"$f":"IF(C85=\"\",\"Tanker Endorsement\",CONCATENATE(\"Tanker Endorsement  (\",CHOOSE(MATCH(Application!C85,Списки!$M$1:$M$6,0),\"V/1-1.1\",\"V/1-1.3\",\"V/1-1.5\",\"V/1-1.3 & V/1-1.5\",\"V/1-2.1\", \"V/1-2.3\"),\")\"))","v":"Tanker Endorsement"}]
["Seaman's Book"]
["COC Endorsement"]
["GMDSS Endorsement"]
[{"$f":"IF(C89=\"\",\"Tanker Endorsement\",CONCATENATE(\"Tanker Endorsement  (\",CHOOSE(MATCH(Application!C89,Списки!$M$1:$M$6,0),\"V/1-1.1\",\"V/1-1.3\",\"V/1-1.5\",\"V/1-1.3 & V/1-1.5\",\"V/1-2.1\", \"V/1-2.3\"),\")\"))","v":"Tanker Endorsement"}]
[]
["Working in mix crew the seafarers should be able to communicate in English and be tolerant to different nations onboard!"]

{"sheet":"Sea-Service","index":2,"n_rows":17,"n_cols":26,"rows_kept":17,"cut":false,"hidden":false,"merged":[[1,12,2,12],[1,13,2,13],[1,15,2,15],[1,17,2,17],[1,23,2,23],[1,21,2,21],[1,25,2,25],[1,20,2,20],[0,0,0,1],[1,16,2,16],[1,24,2,24],[1,8,2,8],[1,9,2,9],[1,10,2,10],[1,0,1,1],[1,2,2,2],[1,3,2,3],[1,4,2,4],[1,5,2,5],[1,6,2,6],[1,7,2,7],[1,14,2,14]]}
["SEA SERVICE :"]
["Onboard period\nrecent contract on top line\noldest contract on bottom line",null,"TOTAL           Y/M/D","Rank","Vessel Type*","Vessel name","Name of the Owner or Manager ","Flag","Year built","GRT","ME Type","Steam or Motor","ME Power (kW)","AE Power (kW)","UMS","Ref instalation Capacity (kJ)","Cargo pumps (type)","Cargo tanks (number & coating)","LNG","LPG","TEUs","Reefer TEUs","Carrying cargo","Line or Trading area","USCG SS/DD","Vetting Inspections"]
["FROM\nDate","UP TO\nDate",null,null,null,null,null,null,null,null,null,"(S or M)",null,null,null,null,null,null,"Containment Type e.g. (No.96; MKIII; IHI SPB; Moss)","Fully Press., Semi Press., Ethylene, Fully Ref",null,null,{"$f":"IF(OR(Application!E7=\"Oil tanker\",Application!E7=\"Chemical tanker\",Application!E7=\"Oil/Bulk/Ore carrier\",Application!E7=\"VLCC\",Application!E7=\"ULCC\"),\"(see Cargo-list)\",\"\")","v":"(see Cargo-list)"}]
[null,null,{"$f":"IF(OR(A4=0,B4=0),\"\",DATEDIF(A4,B4,\"Y\")&\"/\"&DATEDIF(A4,B4,\"YM\")&\"/\"&DATEDIF(A4,B4,\"MD\"))","v":""}]
[null,null,""]
[null,null,""]
[null,null,""]
[null,null,""]
[null,null,""]
[]
["* Please use  following abbreviations for vessel type form the dropdown list:"]
["CONT – Container",null,null,"GC – General Cargo",null,"RSCH - Research Vessel"]
["BULK – Bulk Carrier",null,null,"MLP – Multi-Purpose",null,"PASS – Passenger Ship"]
["TN – Tanker ",null,null,"REEF – Reefer",null,"PIPE – PIPE Layer"]
["CHTN – Chemical Tanker",null,null,"RO-RO – Ro-Ro ",null,"FSH – Fishing Ship "]
["LPG/LNG - GAS Carrier",null,null,"ICEBR - Icebreaker",null,"SS – Sail Ship"]
["HVL – Heavy Lift Vessel",null,null,"RSCH - Research Vessel",null,"DRGR - Dradger"]

{"sheet":"Cargo-list","index":3,"n_rows":55,"n_cols":6,"rows_kept":55,"cut":false,"hidden":true,"merged":[[50,1,50,4],[51,1,51,4],[52,1,52,4],[53,1,53,4],[54,1,54,4],[46,1,46,4],[47,1,47,4],[48,1,48,4],[49,1,49,4],[36,3,36,5],[36,0,36,2],[0,0,0,4],[35,0,35,4],[3,0,3,4],[1,1,1,2],[2,1,2,2],[6,3,6,5],[5,3,5,5],[14,3,14,5],[30,0,30,2],[22,0,22,2],[16,0,16,2],[15,0,15,2],[5,0,5,2]]}
["INFORMATION SHEET CHEMICAL/PRODUCT TANKERS"]
[null,"Name:",null,{"$f":"Application!C8&\" \"&Application!C9","v":" "}]
[null,"Rank:",null,{"$f":"Application!C7","v":"Bosun"}]
["1. Cargoes Carried"]
[null,"*Yes/No","Rank",null,"*Yes/No","Rank"]
["Petroleum Products",null,null,"Chemical Products cont."]
["Gasoil / Diesel oil ",null,null,"Vegoils"]
["ULSD",null,null,"Crude Palm Oil"]
["Gasoline",null,null,"Rapeseed Oil"]
["Naphtha",null,null,"Soyabeen Oil"]
["Kerosine / Jet fuel",null,null,"Sunflower Oil"]
["Fuel Oil",null,null,"Palm steorine"]
["Vacum Gasoil",null,null,"Palm Kernel Oil"]
["Other:  Cracked Gas Oil, Base fuel, Base Oils, Alkylate, Reformate, Jet Fuel, different grades of base components for making Naphtha, Crude Oil",null,null,"Palm Fatty Acid (FAME, SME etc)"]
["Luboils",null,null,"Paraffins"]
["Chemical products",null,null,"Slack wax"]
["Aromatics",null,null,"Hexane"]
["Styrene (Styrene Monomer)",null,null,"Cyclohexane"]
["Toluene",null,null,"Perchlorethylene"]
["Benzene",null,null,"Trichlorethylene"]
["Trymethylbenzene",null,null,"MDI / TDI"]
["Xylene (P-xylene)",null,null,"Ethylene / Methylene Dichloride"]
["Alcohols and Glycols",null,null,"Styrene Monomer"]
["Methanol",null,null,"MethylTert-Butyl Ether (MTBE)"]
["Ethanol",null,null,"Butyl Acetate"]
["Iso-Propyl Alcohol (IPA)",null,null,"Acetone"]
["Butyl / Isobutyl Alcohol",null,null,"Acrylonitrile "]
["2-Ethylhexanol (Octanol )",null,null,"Caustic Soda"]
["Mono Ethylene Glycol (MEG)",null,null,"Chloroform"]
["Molasses",null,null,"Phenols"]
["Acids",null,null,"Propylene Oxide"]
["Phosphoric",null,null,"Vinyl Acetate Monomer (VAM)"]
["Sulphiric",null,null,"Urea Ammonia Nitrate"]
["Acrylic",null,null,"Dowanol"]
["Acetic"]
["2. Other Experience"]
["Cargo Pumps Experience",null,null,"Tank's coating type experience"]
["Deepwell",null,null,"Epoxy"]
["Framo",null,null,"Zinc Silicate"]
["Marflex ( electrical driven )",null,null,"Marinline"]
["Centrifugal (elecrtrical driven)",null,null,"Stainless Steel"]
["Screw ",null,null,"Tank's passivation Experience"]
["Steam Turbine",null,null,"PTT Experience"]
["Parcel Trade Exp. (max No.during single voyage)",null,null,"Wall Wash experience"]
["Experience of shipment chem.cargoes under nitrogen blanket",null,null,"Single Point Moooring (Buoy) Experience "]
[]
["Vetting Inspections  (indicate which)"]
["CDI inspection (Indicate date of last inspection)"]
["USCG Inspection  (Indicate date of last inspection)"]
["Dry Dock experience (indicate shipyard)"]
["Shipyard experience (delivery of the new buildings)"]
["Trading area (indicate areas)"]
["Ice Navigation Experience (Indicate areas)"]
["Ship-to-Ship Experience (indicate areas)"]
["Long term time charters  (indicate which)"]

{"sheet":"Списки","index":4,"n_rows":67,"n_cols":15,"rows_kept":67,"cut":false,"hidden":true,"merged":[[8,1,8,2],[11,1,11,2]]}
["Married",16,"выраженный дефицит массы тела","Master","Master","CONT","Container","II/1","OOW/Deck","вахтенный помощник","Basic",{"$f":"H19","v":"IV/2"},"Basic Oil & Chem","II/2","CPT"]
["Single",18.5,"дефицит массы тела","Chief Officer","C/Off","BULK","Bulk carrier","II/2","CPT","КМ и СПКМ более 500","Advanced",{"$f":"H20","v":"V/1-1.1"},"Advanced Oil","II/2","C/O"]
["Divorced",25,"норма","2 Officer","2/Off","TN","Oil tanker","II/2","C/O","КМ и СПКМ более 500","General",{"$f":"H21","v":"V/1-1.3"},"Advanced Chem","II/1","OOW/Deck"]
["Fully Pressured",30,"избыточная масса тела","3 Officer","3/Off","CHTN","Chemical tanker","II/4","DW/Rating","вахтенный матрос","Restricted",{"$f":"H20&\" & \"&H21","v":"V/1-1.1 & V/1-1.3"},"Adv. Oil & Chem","III/2","C/E > 3000"]
["Semi Pressured",35,"ожирение 1 степени","4 Officer","4/Off","GC","General cargo","II/5","AB","квалифицированный матрос","Yes",{"$f":"H22","v":"V/1-1.5"},"Basic LG","III/2","2/E > 3000"]
["Ethylene",40,"ожирение 2 степени","Chief Engineer","C/Eng","HVL","Heavy lift vessel","III/1","OOW/Engine","вахтенный механик","No",{"$f":"H23","v":"V/1-2.1"},"Advanced LG","III/3","C/E < 3000"]
["Fully Ref.",40,"ожирение 3 степени","2 Engineer","2/Eng","RO-RO","Ro-Ro","III/2","C/E > 3000","СМХ и 2МХ более 3000","MSTR",null,null,"III/3","2/E < 3000"]
["Wife:","Application SAJSC general.xlsm",null,"3 Engineer","3/Eng","REEF","Reefer","III/2","2/E > 3000","СМХ и 2МХ более 3000","MSTR/C",null,null,"III/1","OOW/Engine"]
["Mother:","C:\\Users\\SAJSC\\1 Документы компании\\Бланки\\Application SAJSC general.xlsm",null,"4 Engineer","4/Eng","LPG","LPG carrier","III/3","C/E < 3000","СМХ и 2МХ от 750 до 3000","M/C/2",null,null,"III/6","ETO"]
["Father:",{"$f":"LEN(B8)","v":30},null,"Electro-Technical Officer","ETO","LNG","LNG carrier","III/3","2/E < 3000","СМХ и 2МХ от 750 до 3000","M/C/2/3",null,null,"II/5","AB"]
["Brother:",{"$f":"LEN(B9)","v":73},null,"Refrigeration Officer","Ref/Off","MLP","Multi-Purpose","III/4","EW/Rating","вахтенный моторист","CO",null,null,"II/4","DW/Rating"]
["Sister:",{"$f":"LEFT(B9,B11-B10)","v":"C:\\Users\\SAJSC\\1 Документы компании\\Бланки\\"},null,"Bosun","Bosun","TUG","Tug","III/5","Motorman","квалифицированный моторист","CO/2O",null,null,"III/5","Motorman"]
["Son:",null,null,"Able Seaman","A/B","ICEBR","Icebreaker","III/6","ETO","электромеханик","CO/2/3",null,null,"III/4","EW/Rating"]
["Daughter:",null,null,"Deck Watch Rating","DW/Rating","RSCH","Research vessel","III/7","ET/Rating","электрик","2O",null,null,"III/7","ET/Rating"]
["Grandfather:",null,null,"Pumpman","Pumpman","PIPE","Pipelayer","MOT-2006","Cook","повар","2O/3O",null,null,"MOT-2006","Cook"]
["Grandmother:",null,null,"Fitter","Fitter","PASS","Passenger ship",null,"Absent","Квалификационный документ отсутствует","3O",null,null,null,"Absent"]
["Nephew:",null,null,"Welder","Welder","SS","Sailing vessel",null,null,{"$f":"IF(OR(Application!C37=\"\",Application!C37=\"Absent\"),J16,CONCATENATE(\"Certificate of Competency  (COC)  (\",CHOOSE(MATCH(Application!C37,Списки!I1:I16,0),\"II/1\",\"II/2\",\"II/2\",\"II/4\",\"II/5\",\"III/1\",\"III/2\",\"III/2\",\"III/3\",\"III/3\",\"III/4\",\"III/5\",\"III/6\",\"III/7\",\"MOT-2006\"),\")\"))","v":"Квалификационный документ отсутствует"},"Basic"]
["Niece:",null,null,"Motorman","Motorman","FSH","Fishing vessel",null,null,null,"Advanced"]
["Partner:",null,null,"Engine Watch Rating","EW/Rating","DRGR","Dradger","IV/2",null,"радиоспециалист ГМССБ","Operational"]
["Acquaintance:",null,null,"Electro-Technical Rating","ET/Rating","VLCC","VLCC","V/1-1.1",null,"базовая подготовка для танкеров и химовозов","Management"]
[null,null,null,"Refrigeration Rating","Ref/Rating","ULCC","ULCC","V/1-1.3",null,"расширенная подготовка для танкеров"]
["Married",null,null,"Cook","Cook",null,null,"V/1-1.5",null,"расширенная подготовка для химовозов"]
["Single",null,null,"Steward","Steward",null,null,"V/1-2.1",null,"базовая подготовка для танкеров LG"]
["Divorced",null,null,"Deck Trainee","D/Trainee",{"$f":"INDEX(F1:F21,MATCH(Application!E7,Списки!G1:G21,0))","v":"TN"},{"$f":"Application!E7","v":"Oil tanker"},"V/1-2.3",null,"расширенная подготовка для танкеров LG"]
["Widower",null,null,"Engine Trainee","E/Trainee",null,null,"V/3-1",null,"начальная подготовка по кодексу МГТ для газовозов"]
[null,null,null,null,null,null,null,"V/3-2",null,"расширенная подготовка по кодексу МГТ для газовозов"]
[null,null,null,null,{"$f":"INDEX(E1:E25,D28)","v":"Bosun"},null,null,"VI/1",null,"начальная подготовка по выживанию на море"]
[null,null,null,{"$f":"IF(Application!$C$7=\"\",\"\",MATCH(Application!$C$7,$D$1:D25,0))","v":12},{"$f":"IF(INDEX(E1:E25,D28,1)=\"A/B\",\"AB\",IF(ISERROR(FIND(\"/\",INDEX(E1:E25,D28,1),1))=TRUE,INDEX(E1:E25,D28,1),REPLACE(INDEX(E1:E25,D28,1),FIND(\"/\",INDEX(E1:E25,D28,1),1),1,\".\")))","v":"Bosun"},null,null,"VI/2",null,"специалист по шлюпкам, плотам и дежурным шлюпкам"]
[null,null,null,null,null,null,null,"VI/3-1",null,"расширенная подготовка по борьбе с пожаром"]
[null,null,null,null,null,null,null,"VI/3-2",null,"базовая подготовка по борьбе с пожаром"]
[null,null,null,null,null,null,null,"VI/4-1",null,"первая медицинская помощь"]
[null,null,null,null,null,null,null,"VI/4-2",null,"медицинский уход"]
[null,null,null,null,null,null,null,"VI/5",null,"ship security officer"]
[null,null,null,null,null,null,null,"VI/6-1",null,"базовая подготовка по охране судна"]
[null,null,null,null,null,null,null,"VI/6-2",null,"подготовка для лиц с обязанностями по охране"]
[null,null,null,null,null,null,null,"I/12-4",null,"РЛТ"]
[null,null,null,null,null,null,null,"I/12-5",null,"САРП"]
[null,null,null,null,null,null,null,"I/12-",null,"ЭКНИС"]
[]
[]
[]
[]
[]
[]
[]
[]
[]
[]
[]
[]
[]
[]
[]
[]
[]
[]
[null,null,null,null,null,"MLP","Multi-Purpose"]
[null,null,null,null,null,"TUG","Tug"]
[null,null,null,null,null,"ICEBR","Icebreaker"]
[null,null,null,null,null,"RSCH","Research vessel"]
[null,null,null,null,null,"PIPE","Pipelayer"]
[null,null,null,null,null,"PASS","Passenger ship"]
[null,null,null,null,null,"SS","Sailing vessel"]
[null,null,null,null,null,"FSH","Fishing vessel"]
[null,null,null,null,null,"OBO","Oil/Bulk/Ore carrier"]
[null,null,null,null,null,"VLCC","VLCC"]
[null,null,null,null,null,"ULCC","ULCC"]